fUST/lending_fUST_20250522
["ID","MTS","AMOUNT","RATE_DAILY","PERIOD"]
[361867569,1747853433875,-430.0,0.00024595,2]
[361867570,1747853433885,-379.36,0.00024595,2]
[361867572,1747853433895,-430.0,0.00024595,2]
[361867574,1747853433905,-208.55352231,0.00024648,2]
[361867576,1747853433915,-200.0,0.00024658,2]
[361867578,1747853433924,-430.0,0.00024658,2]
[361867580,1747853433934,-430.0,0.00024658,2]
[361867582,1747853433944,-450.0,0.00024658,2]
[361867584,1747853433954,-450.0,0.00024658,2]
[361867585,1747853433963,-450.0,0.00024658,2]
[361867587,1747853433973,-430.0,0.00024658,2]
[361867589,1747853433983,-450.0,0.00024658,2]
[361867591,1747853433993,-596.52,0.00024658,2]
[361867593,1747853434003,-450.0,0.00024658,2]
[361867595,1747853434013,-430.0,0.00024658,2]
[361867597,1747853434023,-500.0,0.00024659,2]
[361867599,1747853434032,-500.0,0.00024659,2]
[361867601,1747853434043,-500.0,0.00024659,2]
[361867603,1747853434053,-500.0,0.00024659,2]
[361867605,1747853434062,-500.0,0.00024659,2]
[361867606,1747853434072,-500.0,0.00024659,2]
[361867608,1747853434082,-265.10647973,0.00024659,2]
[361867610,1747853434093,-171.33707713,0.00024659,2]
[361867612,1747853434103,-500.0,0.00024659,2]
[361867614,1747853434113,-500.0,0.00024659,2]
[361867616,1747853434123,-500.0,0.00024659,2]
[361867618,1747853434133,-500.0,0.00024659,2]
[361867620,1747853434142,-500.0,0.00024659,2]
[361867622,1747853434151,-596.52,0.00024659,2]
[361867624,1747853434162,-596.52,0.00024659,2]
[361867626,1747853434172,-596.52,0.00024659,2]
[361867628,1747853434181,-596.52,0.00024659,2]
[361867630,1747853434191,-596.52,0.00024659,2]
[361867632,1747853434203,-596.52,0.00024659,2]
[361867634,1747853434213,-5613.35,0.00024659,2]
[361867636,1747853434222,-12636.36277777,0.0002466,7]
[361867637,1747853434232,-63026.6809842,0.0002466,7]
[361867639,1747853434241,-314.5140147,0.0002466,7]
[361867641,1747853434251,-8261.33,0.000247,7]
[361867643,1747853434261,-168.93603986,0.000247,2]
[361867645,1747853434271,-500.0,0.00024754,2]
[361867647,1747853434280,-2871.06429238,0.0002477,2]
[361867649,1747853434289,-596.52,0.00024794,2]
[361867651,1747853434299,-1000.0,0.00024795,2]
[361867653,1747853434309,-453.70076234,0.00024799,2]
[361867655,1747853434319,-596.52,0.00024799,2]
[361867657,1747853434329,-596.52,0.00024799,2]
[361867659,1747853434338,-596.52,0.00024799,2]
[361867661,1747853434348,-25659.73,0.000248,2]
[361867663,1747853434357,-314.5140147,0.000248,3]
[361867665,1747853434368,-137.42014767,0.000248,2]
[361867667,1747853434384,-553.83063043,0.000248,2]
[361867668,1747853434400,-7404.6358951,0.000248,2]
[361867670,1747853434412,-6378.9540298,0.000248,2]
[361867672,1747853434422,-430.0,0.00024827,2]
[361867674,1747853434431,-430.0,0.00024827,2]
[361867676,1747853434441,-168.93603986,0.00024832,2]
[361867678,1747853434451,-7237.42035152,0.0002485,2]
[361867680,1747853434460,-596.52,0.00024859,2]
[361867681,1747853434470,-596.52,0.00024859,2]
[361867683,1747853434480,-278.0,0.0002486,120]
[361867685,1747853434491,-210.0,0.0002486,120]
[361867687,1747853434500,-13841.0,0.0002486,120]
[361867689,1747853434510,-24.53182955,0.0002486,120]
[361867691,1747853434522,-253.46817045,0.0002486,120]
[361867693,1747853434531,-210.0,0.0002486,120]
[361867695,1747853434540,-12.43182955,0.0002486,120]
[361867722,1747853438567,-360.67628353,0.00023772,2]
[361867724,1747853438577,-400.0,0.00023975,2]
[361867727,1747853438587,-302.27790796,0.00024659,2]
[361867729,1747853438597,-500.0,0.00024659,2]
[361867731,1747853438607,-500.0,0.00024659,2]
[361867733,1747853438617,-455.13138876,0.00024659,2]
[361867734,1747853438629,-13828.56817045,0.0002486,120]
[361867736,1747853438638,-7237.42035152,0.0002486,2]
[361867738,1747853438648,-480.98,0.00024867,2]
[361867740,1747853438658,-430.0,0.00024867,2]
[361867742,1747853438667,-430.0,0.00024869,2]
[361867744,1747853438677,-596.52,0.00024869,2]
[361867746,1747853438688,-234.08,0.00024869,2]
[361867748,1747853438697,-278.0,0.0002487,120]
[361867751,1747853438707,-210.0,0.0002487,120]
[361867753,1747853438718,-13841.0,0.0002487,120]
[361867755,1747853438727,-278.0,0.0002487,120]
[361867758,1747853438737,-210.0,0.0002487,120]
[361867760,1747853438747,-13841.0,0.0002487,120]
[361867762,1747853438757,-7237.42035152,0.0002487,2]
[361867764,1747853438766,-596.52,0.00024879,2]
[361867766,1747853438775,-596.52,0.00024879,2]
[361867768,1747853438785,-278.0,0.0002488,120]
[361867770,1747853438795,-210.0,0.0002488,120]
[361867772,1747853438804,-13841.0,0.0002488,120]
[361867774,1747853438814,-278.0,0.0002488,120]
[361867777,1747853438823,-167.01,0.0002488,120]
[361867779,1747853438833,-210.0,0.0002488,120]
[361867781,1747853438843,-13841.0,0.0002488,120]
[361867783,1747853438853,-596.52,0.0002488,2]
[361867785,1747853438863,-596.52,0.0002488,2]
[361867786,1747853438874,-596.52,0.0002488,2]
[361867787,1747853438884,-596.52,0.0002488,2]
[361867788,1747853438894,-596.55,0.0002488,2]
[361867789,1747853438904,-1738.8949914,0.00024894,2]
[361867790,1747853438914,-11427.02825668,0.000249,2]
[361867791,1747853438923,-625.99078363,0.000249,3]
[361867792,1747853438933,-36054.40514791,0.000249,2]
[361867793,1747853438945,-6538.8368079,0.000249,2]
[361867848,1747853440862,-529.45627553,0.0002377,2]
[361867849,1747853440872,-450.0,0.00023772,2]
[361867850,1747853440884,-450.0,0.00023772,2]
[361867851,1747853440895,-140030.26836447,0.000249,2]
[361867917,1747853443793,-405.68561956,0.00024658,2]
[361867918,1747853443804,-317.59053364,0.00024659,2]
[361867919,1747853443814,-81367.93064068,0.000249,2]
[361867920,1747853443848,-1286.63999999,0.000249,2]
[361867948,1747853446731,-763.36035976,0.000249,2]
[361867949,1747853446743,-24087.3636,0.000249,2]
[361867951,1747853447857,-32333.09320789,0.000249,2]
[361867952,1747853447869,-4125.75446281,0.000249,2]
[361867954,1747853665374,-5000.0,0.00016898,2]
[361867955,1747853734021,-5000.0,0.00016898,2]
[361867956,1747854058241,160.403482,0.00013699,2]
[361867960,1747854341290,-163.0,0.00017068,3]
[361867961,1747854341314,-5000.0,0.00017195,2]
[361867962,1747854341335,-160.403482,0.00020548,2]
[361867963,1747854341360,-964.89796506,0.000209,4]
[361867964,1747854341383,-964.89796481,0.00021072,4]
[361867965,1747854341404,-352.528999,0.00021132,2]
[361867966,1747854341430,-964.89796481,0.00021245,4]
[361867967,1747854341453,-964.89796481,0.00021417,5]
[361867968,1747854341474,-300.0,0.00021585,2]
[361867969,1747854341496,-300.0,0.00021586,2]
[361867970,1747854341520,-964.89796481,0.0002159,5]
[361867971,1747854341544,-964.89796481,0.00021762,5]
[361867972,1747854341567,-964.89796481,0.00021934,6]
[361867973,1747854341588,-450.0,0.00022037,2]
[361867974,1747854341610,-509.62,0.00022037,2]
[361867975,1747854341632,-545.26,0.00022037,2]
[361867976,1747854341658,-964.89796481,0.00022107,6]
[361867977,1747854341684,-964.89796481,0.00022279,6]
[361867978,1747854341704,-400.0,0.00022309,2]
[361867979,1747854341729,-400.28143755,0.00022309,2]
[361867980,1747854341749,-430.0,0.0002231,2]
[361867981,1747854341771,-430.0,0.0002231,2]
[361867982,1747854341792,-430.0,0.0002231,2]
[361867983,1747854341815,-300.0,0.0002231,2]
[361867984,1747854341836,-450.0,0.0002231,2]
[361867985,1747854341857,-450.0,0.0002231,2]
[361867986,1747854341878,-450.0,0.0002231,2]
[361867987,1747854341898,-300.0,0.0002231,2]
[361867988,1747854341921,-430.0,0.0002231,2]
[361867989,1747854341944,-430.0,0.0002231,2]
[361867990,1747854341966,-400.0,0.0002231,2]
[361867991,1747854341988,-400.62172727,0.0002231,2]
[361867992,1747854342010,-430.0,0.0002231,2]
[361867993,1747854342032,-401.06920622,0.0002231,2]
[361867994,1747854342056,-964.89796481,0.00022452,7]
[361867995,1747854342078,-430.0,0.00022584,2]
[361867996,1747854342099,-430.0,0.00022584,2]
[361867997,1747854342123,-964.89796481,0.00022624,7]
[361867998,1747854342144,-401.11380951,0.0002277,2]
[361867999,1747854342165,-420.0,0.0002277,2]
[361868000,1747854342187,-420.0,0.0002277,2]
[361868001,1747854342209,-450.0,0.0002277,2]
[361868002,1747854342230,-450.0,0.0002277,2]
[361868003,1747854342250,-430.0,0.0002277,2]
[361868004,1747854342271,-450.0,0.0002277,2]
[361868005,1747854342292,-450.0,0.0002277,2]
[361868006,1747854342313,-450.0,0.0002277,2]
[361868007,1747854342334,-450.0,0.0002277,2]
[361868008,1747854342355,-450.0,0.0002277,2]
[361868009,1747854342380,-430.0,0.0002277,2]
[361868010,1747854342402,-450.0,0.0002277,2]
[361868011,1747854342425,-430.0,0.0002277,2]
[361868012,1747854342446,-351.40327122,0.0002277,2]
[361868013,1747854342466,-450.0,0.0002277,2]
[361868014,1747854342487,-430.0,0.0002277,2]
[361868015,1747854342512,-351.02513194,0.0002277,2]
[361868016,1747854342533,-450.0,0.0002277,2]
[361868017,1747854342554,-430.0,0.0002277,2]
[361868018,1747854342576,-430.0,0.0002277,2]
[361868019,1747854342596,-450.0,0.0002277,2]
[361868020,1747854342619,-450.0,0.0002277,2]
[361868021,1747854342644,-350.0,0.0002277,2]
[361868022,1747854342665,-450.0,0.0002277,2]
[361868023,1747854342689,-450.0,0.0002277,2]
[361868024,1747854342709,-4505.9935141,0.00022771,2]
[361868025,1747854342737,-964.89796481,0.00022797,7]
[361868026,1747854342761,-430.0,0.00022858,2]
[361868027,1747854342784,-430.0,0.00022858,2]
[361868028,1747854342806,-200.51462812,0.00022953,2]
[361868029,1747854342831,-964.89796481,0.00022969,8]
[361868030,1747854342859,-160.0,0.00023015,2]
[361868031,1747854342890,-430.0,0.00023044,2]
[361868032,1747854342920,-430.0,0.00023132,2]
[361868033,1747854342949,-430.0,0.00023132,2]
[361868034,1747854342978,-964.89796481,0.00023141,8]
[361868035,1747854343006,-555.2986708,0.00023299,2]
[361868036,1747854343036,-964.89796481,0.00023314,9]
[361868037,1747854343067,-430.0,0.00023318,2]
[361868038,1747854343098,-339.52,0.00023406,2]
[361868039,1747854343128,-430.0,0.00023406,2]
[361868040,1747854343160,-964.89796481,0.00023486,9]
[361868041,1747854343193,-430.0,0.00023592,2]
[361868042,1747854343224,-964.89796481,0.00023659,9]
[361868043,1747854343250,-230.20704702,0.00023672,2]
[361868044,1747854343281,-299.35,0.0002368,2]
[361868045,1747854343311,-301.48564125,0.0002377,2]
[361868046,1747854343340,-430.0,0.00023771,2]
[361868047,1747854343369,-430.0,0.00023771,2]
[361868048,1747854343394,-400.0,0.00023772,2]
[361868049,1747854343417,-430.0,0.00023772,2]
[361868050,1747854343449,-450.0,0.00023772,2]
[361868051,1747854343473,-400.05526058,0.00023772,2]
[361868052,1747854343501,-430.0,0.00023772,2]
[361868053,1747854343530,-430.0,0.00023772,2]
[361868054,1747854343558,-430.0,0.00023772,2]
[361868055,1747854343586,-430.0,0.00023772,2]
[361868056,1747854343612,-430.0,0.00023772,2]
[361868057,1747854343641,-430.0,0.00023772,2]
[361868058,1747854343670,-350.0,0.00023772,2]
[361868059,1747854343698,-350.0,0.00023772,2]
[361868060,1747854343724,-350.0,0.00023772,2]
[361868061,1747854343748,-430.0,0.00023772,2]
[361868062,1747854343774,-350.0,0.00023772,2]
[361868063,1747854343801,-350.0,0.00023772,2]
[361868064,1747854343830,-430.0,0.00023772,2]
[361868065,1747854343854,-350.0,0.00023772,2]
[361868066,1747854343876,-350.0,0.00023772,2]
[361868067,1747854343901,-559.38,0.00023772,2]
[361868068,1747854343928,-430.0,0.00023772,2]
[361868069,1747854343953,-430.0,0.00023772,2]
[361868070,1747854343976,-350.0,0.00023772,2]
[361868071,1747854343999,-430.0,0.00023772,2]
[361868072,1747854344022,-350.0,0.00023772,2]
[361868073,1747854344045,-350.0,0.00023772,2]
[361868074,1747854344067,-350.0,0.00023772,2]
[361868075,1747854344090,-350.0,0.00023772,2]
[361868076,1747854344115,-350.0,0.00023772,2]
[361868077,1747854344139,-353.86214344,0.00023772,2]
[361868078,1747854344166,-454.33015463,0.00023772,2]
[361868079,1747854344194,-430.0,0.00023772,2]
[361868080,1747854344219,-350.0,0.00023772,2]
[361868081,1747854344243,-451.81794322,0.00023772,2]
[361868082,1747854344267,-540.17026897,0.00023772,2]
[361868083,1747854344292,-350.0,0.00023772,2]
[361868084,1747854344316,-451.29922594,0.00023772,2]
[361868085,1747854344340,-461.86237603,0.00023772,2]
[361868086,1747854344364,-350.0,0.00023772,2]
[361868087,1747854344388,-542.08733713,0.00023772,2]
[361868088,1747854344414,-430.0,0.00023772,2]
[361868089,1747854344439,-290.626207,0.00023772,2]
[361868090,1747854344464,-350.0,0.00023772,2]
[361868091,1747854344490,-430.0,0.00023772,2]
[361868092,1747854344516,-430.0,0.00023772,2]
[361868093,1747854344541,-350.0,0.00023772,2]
[361868094,1747854344565,-350.0,0.00023772,2]
[361868095,1747854344588,-430.0,0.00023772,2]
[361868096,1747854344613,-350.0,0.00023772,2]
[361868097,1747854344638,-350.0,0.00023772,2]
[361868098,1747854344831,-350.0,0.00023772,2]
[361868099,1747854344855,-350.0,0.00023772,2]
[361868100,1747854344878,-507.45487003,0.00023772,2]
[361868101,1747854344901,-509.18,0.00023772,2]
[361868102,1747854344922,-450.0,0.00023772,2]
[361868103,1747854344944,-446.33880489,0.00023772,2]
[361868104,1747854344965,-278.52904426,0.00023772,2]
[361868105,1747854448074,-904.22527882,0.00022086,2]
[361868108,1747854547100,-430.0,0.00022037,2]
[361868109,1747854547122,-160.0,0.00022086,2]
[361868110,1747854547143,-231.15713462,0.00022309,2]
[361868111,1747854547163,-519.59724508,0.00022309,2]
[361868112,1747854547185,-430.0,0.0002231,2]
[361868113,1747854547205,-370.74557698,0.0002231,2]
[361868114,1747854547226,-430.0,0.00022311,2]
[361868115,1747854547249,-239.49,0.00022584,2]
[361868116,1747854547272,-430.0,0.00022585,2]
[361868117,1747854547295,-350.91747707,0.0002277,2]
[361868118,1747854547318,-430.0,0.0002277,2]
[361868119,1747854547342,-456.8460419,0.0002277,2]
[361868120,1747854547370,-401.03096824,0.0002277,2]
[361868121,1747854547392,-450.0,0.0002277,2]
[361868122,1747854547417,-450.0,0.0002277,2]
[361868123,1747854547438,-400.0,0.0002277,2]
[361868124,1747854547459,-430.0,0.0002277,2]
[361868125,1747854547484,-430.0,0.0002277,2]
[361868126,1747854547506,-430.0,0.0002277,2]
[361868127,1747854547527,-470.0,0.0002277,2]
[361868128,1747854547548,-450.0,0.0002277,2]
[361868129,1747854547568,-430.0,0.0002277,2]
[361868130,1747854547588,-430.0,0.0002277,2]
[361868131,1747854547612,-430.0,0.0002277,2]
[361868132,1747854547633,-421.59719,0.0002277,2]
[361868133,1747854547655,-430.0,0.0002277,2]
[361868134,1747854547676,-389.04,0.0002277,2]
[361868135,1747854547697,-505.47,0.0002277,2]
[361868136,1747854547717,-36478.5783857,0.0002277,2]
[361868137,1747854568172,-430.0,0.0002277,2]
[361868138,1747854568195,-370.0,0.0002277,2]
[361868139,1747854568217,-88.49498356,0.0002277,2]
[361868191,1747854631957,-430.0,0.0002277,2]
[361868193,1747854631968,-450.0,0.0002277,2]
[361868195,1747854631977,-13432.92663074,0.0002277,2]
[361868198,1747854631987,-430.0,0.00022859,2]
[361868201,1747854631997,-430.0,0.00023044,2]
[361868203,1747854632007,-430.0,0.00023133,2]
[361868205,1747854632016,-430.0,0.00023318,2]
[361868207,1747854632025,-516.93,0.00023407,2]
[361868209,1747854632035,-430.0,0.00023592,2]
[361868211,1747854632045,-153.47136468,0.00023672,2]
[361868213,1747854632055,-151.47095574,0.00023772,2]
[361868215,1747854632065,-450.0,0.00023772,2]
[361868217,1747854632075,-450.0,0.00023772,2]
[361868219,1747854632085,-401.49548055,0.00023772,2]
[361868221,1747854632094,-401.31841447,0.00023772,2]
[361868223,1747854632103,-430.0,0.00023772,2]
[361868225,1747854632112,-354.06959021,0.00023772,2]
[361868227,1747854632121,-345.23136033,0.00023772,2]
[361868229,1747854632131,-350.0,0.00023772,2]
[361868231,1747854632140,-350.84694975,0.00023772,2]
[361868233,1747854632150,-450.0,0.00023772,2]
[361868234,1747854632161,-430.0,0.00023772,2]
[361868236,1747854632171,-350.0,0.00023772,2]
[361868238,1747854632180,-430.0,0.00023772,2]
[361868241,1747854632190,-300.0,0.00023772,2]
[361868243,1747854632200,-401.70462869,0.00023772,2]
[361868245,1747854632210,-430.0,0.00023772,2]
[361868247,1747854632219,-466.57344325,0.00023772,2]
[361868249,1747854632229,-430.0,0.00023772,2]
[361868251,1747854632238,-430.0,0.00023772,2]
[361868253,1747854632248,-350.0,0.00023772,2]
[361868255,1747854632257,-430.0,0.00023772,2]
[361868257,1747854632266,-430.0,0.00023772,2]
[361868259,1747854632275,-350.0,0.00023772,2]
[361868260,1747854632285,-175.41115648,0.00023772,2]
[361868261,1747854632297,-254.87,0.00023772,2]
[361868338,1747854637691,-89.87792369,0.00023772,2]
[361868339,1747854637700,-430.0,0.00023772,2]
[361868341,1747854637710,-430.0,0.00023772,2]
[361868343,1747854637719,-430.0,0.00023772,2]
[361868344,1747854637730,-167.1776934,0.00023772,2]
[361868345,1747854637739,-350.0,0.00023772,2]
[361868346,1747854637749,-430.0,0.00023772,2]
[361868347,1747854637759,-350.0,0.00023772,2]
[361868348,1747854637768,-370.0,0.00023772,2]
[361868349,1747854637779,-430.0,0.00023772,2]
[361868350,1747854637788,-430.0,0.00023772,2]
[361868351,1747854637799,-430.0,0.00023772,2]
[361868352,1747854637808,-430.0,0.00023772,2]
[361868353,1747854637819,-300.0,0.00023772,2]
[361868354,1747854637834,-450.0,0.00023772,2]
[361868355,1747854637844,-364.55153147,0.00023772,2]
[361868357,1747854637854,-430.0,0.00023772,2]
[361868358,1747854637863,-430.0,0.00023772,2]
[361868359,1747854637874,-430.0,0.00023772,2]
[361868360,1747854637883,-430.0,0.00023772,2]
[361868362,1747854637893,-343.33243676,0.00023772,2]
[361868364,1747854637916,-450.0,0.00023772,2]
[361868365,1747854637928,-363.73473975,0.00023772,2]
[361868366,1747854637938,-430.0,0.00023772,2]
[361868367,1747854637948,-1145.27854563,0.00023772,2]
[361868368,1747854637958,-430.0,0.00023772,2]
[361868369,1747854637969,-560.41238734,0.00023772,2]
[361868370,1747854637979,-430.0,0.00023772,2]
[361868371,1747854637989,-450.0,0.00023772,2]
[361868372,1747854638000,-301.37178757,0.00023772,2]
[361868373,1747854638010,-217.42104227,0.00023772,2]
[361868374,1747854638020,-450.0,0.00023772,2]
[361868375,1747854638030,-450.0,0.00023772,2]
[361868376,1747854638040,-450.0,0.00023772,2]
[361868377,1747854638050,-450.0,0.00023772,2]
[361868378,1747854638245,-450.0,0.00023772,2]
[361868379,1747854638256,-450.0,0.00023772,2]
[361868380,1747854638266,-450.0,0.00023772,2]
[361868381,1747854638276,-450.0,0.00023772,2]
[361868382,1747854638287,-450.0,0.00023772,2]
[361868383,1747854638296,-450.0,0.00023772,2]
[361868384,1747854638306,-430.0,0.00023772,2]
[361868385,1747854638316,-450.0,0.00023772,2]
[361868386,1747854638326,-452.2361337,0.00023772,2]
[361868387,1747854638336,-430.0,0.00023772,2]
[361868388,1747854638346,-450.0,0.00023772,2]
[361868389,1747854638355,-451.65785001,0.00023772,2]
[361868390,1747854638365,-450.0,0.00023772,2]
[361868391,1747854638375,-450.0,0.00023772,2]
[361868392,1747854638385,-350.0,0.00023772,2]
[361868393,1747854638395,-350.0,0.00023772,2]
[361868394,1747854638405,-430.0,0.00023772,2]
[361868395,1747854638416,-451.63122334,0.00023772,2]
[361868396,1747854638426,-450.0,0.00023772,2]
[361868397,1747854638435,-457.46846965,0.00023772,2]
[361868398,1747854638445,-457.23559098,0.00023772,2]
[361868399,1747854638459,-450.0,0.00023772,2]
[361868400,1747854638469,-430.0,0.00023772,2]
[361868401,1747854638479,-437.2179906,0.00023772,2]
[361868402,1747854638490,-455.45174444,0.00023772,2]
[361868403,1747854638499,-455.46185343,0.00023772,2]
[361868404,1747854638509,-450.0,0.00023772,2]
[361868405,1747854638519,-450.0,0.00023772,2]
[361868406,1747854638529,-430.0,0.00023772,2]
[361868407,1747854638538,-450.0,0.00023772,2]
[361868408,1747854638548,-450.0,0.00023772,2]
[361868409,1747854638558,-341.9882811,0.00023772,2]
[361868410,1747854638567,-160.19330124,0.00023772,2]
[361868411,1747854638578,-450.0,0.00023772,2]
[361868412,1747854638587,-300.0,0.00023772,2]
[361868413,1747854638598,-450.0,0.00023772,2]
[361868414,1747854638608,-326.9439525,0.00023772,2]
[361868415,1747854638618,-450.0,0.00023772,2]
[361868416,1747854638627,-300.0,0.00023772,2]
[361868417,1747854638636,-450.0,0.00023772,2]
[361868418,1747854638647,-455.96145594,0.00023773,2]
[361868419,1747854638657,-454.90845459,0.00023773,2]
[361868420,1747854638668,-430.0,0.00023773,2]
[361868421,1747854638678,-453.46075788,0.00023773,2]
[361868422,1747854638688,-456.16029481,0.00023773,2]
[361868423,1747854638698,-450.0,0.00023773,2]
[361868424,1747854638708,-453.57299444,0.00023773,2]
[361868425,1747854638718,-450.89477104,0.00023773,2]
[361868426,1747854638728,-450.0,0.00023773,2]
[361868427,1747854638738,-450.0,0.00023773,2]
[361868428,1747854638748,-430.0,0.00023773,2]
[361868429,1747854638758,-450.0,0.00023773,2]
[361868430,1747854638767,-450.0,0.00023773,2]
[361868431,1747854638777,-350.0,0.00023773,2]
[361868432,1747854638787,-353.74930746,0.00023773,2]
[361868433,1747854638797,-350.0,0.00023773,2]
[361868434,1747854638807,-350.0,0.00023773,2]
[361868435,1747854638818,-430.0,0.00023866,2]
[361868436,1747854638828,-502.21,0.000239,2]
[361868437,1747854638841,-418.12245164,0.000239,10]
[361868438,1747854638851,-418.12245141,0.00023969,10]
[361868439,1747854638861,-5379.46,0.00023974,2]
[361868440,1747854638871,-458.34631231,0.00023975,2]
[361868441,1747854638882,-450.0,0.00023975,2]
[361868442,1747854638893,-450.0,0.00023975,2]
[361868443,1747854638903,-450.0,0.00023975,2]
[361868444,1747854638915,-572.28155178,0.00023975,2]
[361868445,1747854638926,-400.43254673,0.00023975,2]
[361868446,1747854638936,-400.50672276,0.00023975,2]
[361868447,1747854638946,-450.0,0.00023975,2]
[361868448,1747854638956,-450.0,0.00023975,2]
[361868449,1747854638967,-450.0,0.00023975,2]
[361868450,1747854638977,-430.0,0.00023975,2]
[361868451,1747854638986,-430.0,0.00023975,2]
[361868452,1747854638996,-450.0,0.00023975,2]
[361868453,1747854639006,-430.0,0.00023975,2]
[361868454,1747854639016,-430.0,0.00023975,2]
[361868455,1747854639026,-450.0,0.00023975,2]
[361868456,1747854639035,-500.0,0.00023975,2]
[361868457,1747854639045,-430.0,0.00023975,2]
[361868458,1747854639054,-430.0,0.00023975,2]
[361868459,1747854639064,-430.0,0.00023975,2]
[361868460,1747854639073,-430.0,0.00023975,2]
[361868461,1747854639085,-430.0,0.00023975,2]
[361868462,1747854639095,-430.0,0.00023975,2]
[361868463,1747854639106,-430.0,0.00023975,2]
[361868464,1747854639115,-433.03742279,0.00023975,2]
[361868465,1747854639125,-400.0,0.00023975,2]
[361868466,1747854639135,-450.0,0.00023975,2]
[361868467,1747854639145,-430.0,0.00023975,2]
[361868468,1747854639155,-430.0,0.00023975,2]
[361868469,1747854639167,-430.0,0.00023975,2]
[361868470,1747854639177,-453.61170903,0.00023975,2]
[361868471,1747854639188,-404.35367001,0.00023975,2]
[361868472,1747854639197,-450.0,0.00023975,2]
[361868473,1747854639208,-453.91573984,0.00023975,2]
[361868474,1747854639218,-450.0,0.00023975,2]
[361868475,1747854639228,-430.0,0.00023975,2]
[361868476,1747854639238,-450.0,0.00023975,2]
[361868477,1747854639247,-430.0,0.00023975,2]
[361868478,1747854639257,-430.0,0.00023975,2]
[361868479,1747854639266,-430.0,0.00023975,2]
[361868480,1747854639276,-450.0,0.00023975,2]
[361868481,1747854639285,-450.0,0.00023975,2]
[361868482,1747854639294,-430.0,0.00023975,2]
[361868483,1747854639304,-430.0,0.00023975,2]
[361868484,1747854639313,-418.12245141,0.00024038,10]
[361868485,1747854639323,-500.0,0.00024045,2]
[361868486,1747854639332,-350.0,0.00024046,2]
[361868487,1747854639342,-430.0,0.00024046,2]
[361868488,1747854639352,-370.0,0.00024046,2]
[361868489,1747854639361,-370.0,0.00024046,2]
[361868490,1747854639371,-470.0,0.00024046,2]
[361868491,1747854639381,-370.0,0.00024046,2]
[361868492,1747854639391,-485.23017228,0.00024046,2]
[361868493,1747854639401,-430.0,0.00024046,2]
[361868494,1747854639410,-430.0,0.00024046,2]
[361868495,1747854639421,-300.0,0.00024046,2]
[361868496,1747854639431,-418.12245141,0.00024107,10]
[361868497,1747854639442,-151.0,0.00024128,2]
[361868498,1747854639451,-191.7684694,0.00024128,2]
[361868499,1747854639460,-430.0,0.0002414,2]
[361868500,1747854639470,-418.12245141,0.00024176,10]
[361868501,1747854639480,-153.47136468,0.00024236,2]
[361868502,1747854639489,-418.12245141,0.00024245,10]
[361868503,1747854639499,-500.0,0.00024249,2]
[361868504,1747854639510,-161.95,0.00024249,2]
[361868505,1747854639520,-449.36,0.00024249,2]
[361868507,1747854639529,-430.0,0.00024249,2]
[361868509,1747854639539,-227.31,0.00024249,2]